[Event "Early-Titled-Tuesday-Blitz-December-26-2023"]
[Site "Chess.com"]
[Date "2023.12.26"]
[Round "8"]
[White "WeAintSurePal"]
[Black "Aleksandar-Topalov"]
[Result "0-1"]
[WhiteElo "2509"]
[BlackElo "2368"]
[TimeControl "180+1"]
[EndTime "9:28:49 PST"]
[Termination "Aleksandar-Topalov won by resignation"]

1. d4 {[%clk 0:03:00.9]} 1... Nf6 {[%clk 0:02:59.6]} 2. Nf3 {[%clk 0:03:01.4]}
2... g6 {[%clk 0:02:57]} 3. Bg5 {[%clk 0:03:00.4]} 3... Bg7 {[%clk 0:02:57.1]}
4. c3 {[%clk 0:03:00.4]} 4... O-O {[%clk 0:02:55]} 5. Nbd2 {[%clk 0:03:00.1]}
5... d5 {[%clk 0:02:50.3]} 6. e3 {[%clk 0:03:00]} 6... Nbd7 {[%clk 0:02:50.3]}
7. Be2 {[%clk 0:02:59]} 7... c6 {[%clk 0:02:47.4]} 8. O-O {[%clk 0:02:59.4]}
8... Re8 {[%clk 0:02:47.4]} 9. h3 {[%clk 0:02:58.1]} 9... e5 {[%clk 0:02:46.6]}
10. dxe5 {[%clk 0:02:58.5]} 10... Nxe5 {[%clk 0:02:46.9]} 11. Nxe5 {[%clk
0:02:58.5]} 11... Rxe5 {[%clk 0:02:47.1]} 12. Bh4 {[%clk 0:02:55.1]} 12... Qb6
{[%clk 0:02:40.6]} 13. Qb3 {[%clk 0:02:43.2]} 13... Re8 {[%clk 0:02:21.8]} 14.
Rfc1 {[%clk 0:02:34.6]} 14... Be6 {[%clk 0:02:15.4]} 15. Bg3 {[%clk 0:02:31.1]}
15... Ne4 {[%clk 0:02:02.8]} 16. Nxe4 {[%clk 0:02:25.5]} 16... dxe4 {[%clk
0:02:02.7]} 17. Bc4 {[%clk 0:02:26.1]} 17... Qxb3 {[%clk 0:01:56.6]} 18. axb3
{[%clk 0:02:26]} 18... Bxc4 {[%clk 0:01:53.9]} 19. bxc4 {[%clk 0:02:26.9]} 19...
Red8 {[%clk 0:01:48.8]} 20. Rd1 {[%clk 0:02:25.6]} 20... a6 {[%clk 0:01:47.9]}
21. Bc7 {[%clk 0:02:24.6]} 21... Re8 {[%clk 0:01:13.6]} 22. Rd7 {[%clk 0:02:22]}
22... b5 {[%clk 0:01:08.5]} 23. c5 {[%clk 0:02:16.7]} 23... a5 {[%clk
0:01:07.2]} 24. Rxa5 {[%clk 0:02:13.1]} 24... Rxa5 {[%clk 0:01:05.9]} 25. Bxa5
{[%clk 0:02:14]} 25... Ra8 {[%clk 0:01:00.2]} 26. Bc7 {[%clk 0:01:57.1]} 26...
Bf8 {[%clk 0:00:41.6]} 27. Bd6 {[%clk 0:01:32.8]} 27... Rc8 {[%clk 0:00:33.2]}
28. g4 {[%clk 0:01:25.3]} 28... f6 {[%clk 0:00:30]} 29. Rc7 {[%clk 0:01:19.3]}
29... Rxc7 {[%clk 0:00:29.5]} 30. Bxc7 {[%clk 0:01:18.1]} 30... Kf7 {[%clk
0:00:29.8]} 31. b4 {[%clk 0:01:15.1]} 31... Ke6 {[%clk 0:00:29.2]} 32. Kf1
{[%clk 0:01:08.5]} 32... Kd5 {[%clk 0:00:29.5]} 33. Ke2 {[%clk 0:01:08.8]} 33...
Kc4 {[%clk 0:00:30]} 34. Kd2 {[%clk 0:01:09]} 34... f5 {[%clk 0:00:27.5]} 35.
Be5 {[%clk 0:01:08.4]} 35... Be7 {[%clk 0:00:26.6]} 36. Bd4 {[%clk 0:01:02.5]}
36... Kb3 {[%clk 0:00:22.5]} 37. gxf5 {[%clk 0:01:00.3]} 37... gxf5 {[%clk
0:00:22.2]} 38. Ke2 {[%clk 0:01:00.9]} 38... Kc2 {[%clk 0:00:15.3]} 39. f3
{[%clk 0:01:00.9]} 39... Bh4 {[%clk 0:00:14.7]} 40. fxe4 {[%clk 0:00:59]} 40...
fxe4 {[%clk 0:00:15]} 41. Kf1 {[%clk 0:00:55.1]} 41... Kd3 {[%clk 0:00:13.3]}
42. Kg2 {[%clk 0:00:46.3]} 42... Bg5 {[%clk 0:00:12.6]} 43. Kg3 {[%clk
0:00:43.4]} 43... Bxe3 {[%clk 0:00:12.6]} 44. Be5 {[%clk 0:00:44]} 44... Bd2
{[%clk 0:00:11.1]} 45. h4 {[%clk 0:00:43.3]} 45... e3 {[%clk 0:00:11.1]} 46. Kf3
{[%clk 0:00:36.5]} 46... e2 {[%clk 0:00:11.3]} 47. Bg3 {[%clk 0:00:37.1]} 47...
e1=Q {[%clk 0:00:11.1]} 0-1

[Event "Early-Titled-Tuesday-Blitz-December-26-2023"]
[Site "Chess.com"]
[Date "2023.12.26"]
[Round "8"]
[White "laskakid"]
[Black "Yushko_Olga"]
[Result "1-0"]
[WhiteElo "2363"]
[BlackElo "2175"]
[TimeControl "180+1"]
[EndTime "9:28:52 PST"]
[Termination "laskakid won on time"]

1. d4 {[%clk 0:03:00.9]} 1... e6 {[%clk 0:02:59.5]} 2. c4 {[%clk 0:03:00.6]}
2... f5 {[%clk 0:03:00.3]} 3. Nc3 {[%clk 0:03:00.6]} 3... Nf6 {[%clk 0:03:00.8]}
4. Nf3 {[%clk 0:03:00.8]} 4... d6 {[%clk 0:03:01.3]} 5. Bf4 {[%clk 0:02:49.8]}
5... Be7 {[%clk 0:03:01.2]} 6. e3 {[%clk 0:02:49.8]} 6... O-O {[%clk 0:03:01.7]}
7. Bd3 {[%clk 0:02:41.6]} 7... Qe8 {[%clk 0:03:01.2]} 8. O-O {[%clk 0:02:34.3]}
8... Nc6 {[%clk 0:03:00.6]} 9. d5 {[%clk 0:02:26.5]} 9... Nd8 {[%clk 0:02:59.8]}
10. dxe6 {[%clk 0:02:22.4]} 10... Nxe6 {[%clk 0:02:59.6]} 11. Bg3 {[%clk
0:01:54.3]} 11... Nc5 {[%clk 0:02:17.5]} 12. Bc2 {[%clk 0:01:53.7]} 12... Nce4
{[%clk 0:02:14.5]} 13. Nd5 {[%clk 0:01:38.8]} 13... Bd8 {[%clk 0:02:13.3]} 14.
Nxf6+ {[%clk 0:01:34.7]} 14... Bxf6 {[%clk 0:02:13.1]} 15. Nd4 {[%clk
0:01:26.9]} 15... c5 {[%clk 0:01:58.9]} 16. Nb5 {[%clk 0:01:24.9]} 16... Bxb2
{[%clk 0:01:54.5]} 17. Rb1 {[%clk 0:01:24.4]} 17... Nc3 {[%clk 0:01:45.5]} 18.
Nxc3 {[%clk 0:01:15.2]} 18... Bxc3 {[%clk 0:01:46.4]} 19. Bxd6 {[%clk
0:01:11.3]} 19... Rf6 {[%clk 0:01:46.1]} 20. Bxc5 {[%clk 0:01:11.1]} 20... Be6
{[%clk 0:01:39.2]} 21. Qd3 {[%clk 0:00:59.8]} 21... Be5 {[%clk 0:01:33.1]} 22.
Bd4 {[%clk 0:00:44.5]} 22... Rd8 {[%clk 0:00:33.6]} 23. Qc3 {[%clk 0:00:43.9]}
23... Bxh2+ {[%clk 0:00:29.5]} 24. Kxh2 {[%clk 0:00:33.6]} 24... Qh5+ {[%clk
0:00:29.4]} 25. Kg1 {[%clk 0:00:33.6]} 25... Rg6 {[%clk 0:00:29.7]} 26. f3
{[%clk 0:00:24]} 26... Qh4 {[%clk 0:00:28.6]} 27. Rf2 {[%clk 0:00:22.9]} 27...
Rh6 {[%clk 0:00:24.1]} 28. Kf1 {[%clk 0:00:20.7]} 28... Rc8 {[%clk 0:00:22.6]}
29. c5 {[%clk 0:00:19.7]} 29... Rg6 {[%clk 0:00:14.4]} 30. Rxb7 {[%clk
0:00:17.9]} 30... Qh1+ {[%clk 0:00:06.7]} 31. Ke2 {[%clk 0:00:18]} 31... Rxg2
{[%clk 0:00:06.6]} 32. Rxg7+ {[%clk 0:00:16.7]} 32... Rxg7 {[%clk 0:00:06.1]}
33. Bxg7 {[%clk 0:00:16.9]} 1-0

[Event "Early-Titled-Tuesday-Blitz-December-26-2023"]
[Site "Chess.com"]
[Date "2023.12.26"]
[Round "8"]
[White "mariofs"]
[Black "MIss_MIaMI"]
[Result "0-1"]
[WhiteElo "2223"]
[BlackElo "2433"]
[TimeControl "180+1"]
[EndTime "9:28:54 PST"]
[Termination "MIss_MIaMI won by checkmate"]

1. d4 {[%clk 0:03:00.2]} 1... c5 {[%clk 0:03:00.5]} 2. d5 {[%clk 0:03:00.1]}
2... g6 {[%clk 0:03:01.1]} 3. Nc3 {[%clk 0:02:59.7]} 3... Bg7 {[%clk 0:03:01.7]}
4. e4 {[%clk 0:03:00.1]} 4... a6 {[%clk 0:03:02.4]} 5. a4 {[%clk 0:02:59.7]}
5... d6 {[%clk 0:03:03]} 6. Be2 {[%clk 0:02:58.5]} 6... b6 {[%clk 0:03:02.9]} 7.
Nf3 {[%clk 0:02:56.3]} 7... Nf6 {[%clk 0:03:03.4]} 8. O-O {[%clk 0:02:54.6]}
8... O-O {[%clk 0:03:03.9]} 9. Bf4 {[%clk 0:02:54.2]} 9... Nh5 {[%clk
0:02:57.8]} 10. Bg5 {[%clk 0:02:52.8]} 10... Nd7 {[%clk 0:02:56.5]} 11. Nd2
{[%clk 0:02:51.6]} 11... Nhf6 {[%clk 0:02:53.3]} 12. Nc4 {[%clk 0:02:40.4]}
12... Rb8 {[%clk 0:02:49.7]} 13. Ne3 {[%clk 0:02:34.5]} 13... Ne8 {[%clk
0:02:37.2]} 14. Kh1 {[%clk 0:02:26.1]} 14... Nc7 {[%clk 0:02:36.3]} 15. Qe1
{[%clk 0:02:09.5]} 15... b5 {[%clk 0:02:35.3]} 16. axb5 {[%clk 0:02:01.9]} 16...
axb5 {[%clk 0:02:36.2]} 17. Ra7 {[%clk 0:02:01.9]} 17... b4 {[%clk 0:02:35.2]}
18. Ncd1 {[%clk 0:01:56.2]} 18... Nb5 {[%clk 0:02:34.5]} 19. Bxb5 {[%clk
0:01:50.7]} 19... Rxb5 {[%clk 0:02:35.4]} 20. Nc4 {[%clk 0:01:44.2]} 20... Rb7
{[%clk 0:02:14.2]} 21. Rxb7 {[%clk 0:01:39.6]} 21... Bxb7 {[%clk 0:02:15.1]} 22.
Nxd6 {[%clk 0:01:40]} 22... Ba6 {[%clk 0:02:10.7]} 23. Rg1 {[%clk 0:01:21.6]}
23... f6 {[%clk 0:02:08.3]} 24. Bf4 {[%clk 0:01:13.7]} 24... exd6 {[%clk
0:02:08.3]} 25. Bxd6 {[%clk 0:01:14.6]} 25... Re8 {[%clk 0:02:07]} 26. c3 {[%clk
0:01:05]} 26... bxc3 {[%clk 0:01:55.8]} 27. Nxc3 {[%clk 0:01:04.2]} 27... Qb6
{[%clk 0:01:52.7]} 28. Bg3 {[%clk 0:00:39.9]} 28... Qxb2 {[%clk 0:01:52.4]} 29.
Na4 {[%clk 0:00:22.8]} 29... Qd4 {[%clk 0:01:51.8]} 30. Qa5 {[%clk 0:00:22]}
30... Bc8 {[%clk 0:01:13.5]} 31. f3 {[%clk 0:00:20.8]} 31... Bf8 {[%clk
0:00:52.3]} 32. Nc3 {[%clk 0:00:19.6]} 32... c4 {[%clk 0:00:49.5]} 33. Nb5
{[%clk 0:00:19.5]} 33... Qc5 {[%clk 0:00:49.3]} 34. Qa4 {[%clk 0:00:17.9]} 34...
Nb6 {[%clk 0:00:47.9]} 35. Qa5 {[%clk 0:00:13.3]} 35... Bd7 {[%clk 0:00:42.9]}
36. Rb1 {[%clk 0:00:12.4]} 36... Ra8 {[%clk 0:00:41.8]} 37. Qc3 {[%clk
0:00:03.6]} 37... Bxb5 {[%clk 0:00:39.6]} 38. Qxf6 {[%clk 0:00:03.8]} 38... Bg7
{[%clk 0:00:33.6]} 39. Qe6+ {[%clk 0:00:03]} 39... Kh8 {[%clk 0:00:34.3]} 40.
Bd6 {[%clk 0:00:01.5]} 40... Qd4 {[%clk 0:00:28.9]} 41. Rxb5 {[%clk 0:00:01.7]}
41... Qd1# {[%clk 0:00:28.3]} 0-1

[Event "Early-Titled-Tuesday-Blitz-December-26-2023"]
[Site "Chess.com"]
[Date "2023.12.26"]
[Round "8"]
[White "maurovargas01"]
[Black "LeoWin2012"]
[Result "0-1"]
[WhiteElo "1862"]
[BlackElo "2227"]
[TimeControl "180+1"]
[EndTime "9:28:55 PST"]
[Termination "LeoWin2012 won on time"]

1. e4 {[%clk 0:03:00.7]} 1... c5 {[%clk 0:02:59.3]} 2. Nc3 {[%clk 0:03:00.8]}
2... e6 {[%clk 0:02:56.3]} 3. f4 {[%clk 0:03:01.7]} 3... d5 {[%clk 0:02:55.9]}
4. Nf3 {[%clk 0:03:02.6]} 4... d4 {[%clk 0:02:55.7]} 5. Ne2 {[%clk 0:03:01.9]}
5... Nc6 {[%clk 0:02:54.9]} 6. d3 {[%clk 0:03:02]} 6... Bd6 {[%clk 0:02:52.6]}
7. g3 {[%clk 0:03:00.5]} 7... e5 {[%clk 0:02:52.5]} 8. Bg2 {[%clk 0:02:59.7]}
8... Nf6 {[%clk 0:02:51.2]} 9. O-O {[%clk 0:02:59]} 9... O-O {[%clk 0:02:47.6]}
10. a3 {[%clk 0:02:57.6]} 10... Re8 {[%clk 0:02:36.7]} 11. Qe1 {[%clk 0:02:57]}
11... Bg4 {[%clk 0:02:32.6]} 12. h3 {[%clk 0:02:55]} 12... Bd7 {[%clk
0:02:26.2]} 13. g4 {[%clk 0:02:42.3]} 13... exf4 {[%clk 0:02:23.3]} 14. Nxf4
{[%clk 0:02:40.7]} 14... Ne5 {[%clk 0:02:20.2]} 15. Ng5 {[%clk 0:02:26.6]} 15...
h6 {[%clk 0:02:13.2]} 16. Nf3 {[%clk 0:02:24.8]} 16... Nxf3+ {[%clk 0:02:11.3]}
17. Rxf3 {[%clk 0:02:21.4]} 17... Qc7 {[%clk 0:02:08.5]} 18. Nh5 {[%clk
0:02:04.2]} 18... Nxh5 {[%clk 0:02:05.7]} 19. gxh5 {[%clk 0:02:03.8]} 19... Bc6
{[%clk 0:01:56.3]} 20. Qf1 {[%clk 0:02:02.9]} 20... Re7 {[%clk 0:01:39.4]} 21.
Bd2 {[%clk 0:01:48.2]} 21... Rae8 {[%clk 0:01:25.3]} 22. Re1 {[%clk 0:01:47.2]}
22... Bh2+ {[%clk 0:01:24.1]} 23. Kh1 {[%clk 0:01:46.2]} 23... Bg3 {[%clk
0:01:24.6]} 24. Re2 {[%clk 0:01:42.5]} 24... Be5 {[%clk 0:01:21.9]} 25. Bf4
{[%clk 0:01:35.1]} 25... Bxf4 {[%clk 0:01:19.5]} 26. Rxf4 {[%clk 0:01:34.8]}
26... Qe5 {[%clk 0:01:18]} 27. Rf5 {[%clk 0:01:26.3]} 27... Qg3 {[%clk
0:01:15.4]} 28. Ref2 {[%clk 0:01:23]} 28... Rf8 {[%clk 0:01:07.4]} 29. R5f4
{[%clk 0:01:18]} 29... Bd7 {[%clk 0:00:55.6]} 30. R2f3 {[%clk 0:01:15.9]} 30...
Qg5 {[%clk 0:00:43.6]} 31. h4 {[%clk 0:00:45.9]} 31... Qxh5 {[%clk 0:00:42.4]}
32. Rg3 {[%clk 0:00:43.6]} 32... Kh8 {[%clk 0:00:35.9]} 33. Bf3 {[%clk
0:00:20.4]} 33... Qe5 {[%clk 0:00:34.3]} 34. Bg4 {[%clk 0:00:16.7]} 34... Bxg4
{[%clk 0:00:32.2]} 35. Rfxg4 {[%clk 0:00:16.2]} 35... f5 {[%clk 0:00:26]} 36.
exf5 {[%clk 0:00:06.2]} 36... Rxf5 {[%clk 0:00:24.6]} 0-1

[Event "Early-Titled-Tuesday-Blitz-December-26-2023"]
[Site "Chess.com"]
[Date "2023.12.26"]
[Round "8"]
[White "johnmez"]
[Black "DeyanKostov"]
[Result "0-1"]
[WhiteElo "2308"]
[BlackElo "2488"]
[TimeControl "180+1"]
[EndTime "9:29:00 PST"]
[Termination "DeyanKostov won by resignation"]

1. d4 {[%clk 0:03:00.9]} 1... d5 {[%clk 0:02:59.8]} 2. Bf4 {[%clk 0:02:56.8]}
2... Nf6 {[%clk 0:02:59.6]} 3. e3 {[%clk 0:02:54.3]} 3... e6 {[%clk 0:02:56.9]}
4. Bd3 {[%clk 0:02:43.2]} 4... Bd6 {[%clk 0:02:56.8]} 5. Ne2 {[%clk 0:02:40.4]}
5... O-O {[%clk 0:02:56.6]} 6. O-O {[%clk 0:02:37.7]} 6... c5 {[%clk 0:02:56.7]}
7. c3 {[%clk 0:02:35.2]} 7... Qc7 {[%clk 0:02:56.7]} 8. Nd2 {[%clk 0:02:30.4]}
8... e5 {[%clk 0:02:53]} 9. dxe5 {[%clk 0:02:26.4]} 9... Bxe5 {[%clk 0:02:53.9]}
10. Nf3 {[%clk 0:02:17.1]} 10... Bxf4 {[%clk 0:02:51]} 11. Nxf4 {[%clk 0:02:18]}
11... Nc6 {[%clk 0:02:49.2]} 12. Rc1 {[%clk 0:01:56.7]} 12... b6 {[%clk
0:02:38.2]} 13. Qc2 {[%clk 0:01:55.7]} 13... h6 {[%clk 0:02:28.9]} 14. Rfd1
{[%clk 0:01:53.8]} 14... Bg4 {[%clk 0:02:23.1]} 15. Nxd5 {[%clk 0:01:38.1]}
15... Nxd5 {[%clk 0:02:18.9]} 16. Bh7+ {[%clk 0:01:37.6]} 16... Kh8 {[%clk
0:02:19.5]} 17. Rxd5 {[%clk 0:01:37.6]} 17... Bxf3 {[%clk 0:02:15.1]} 18. gxf3
{[%clk 0:01:29.9]} 18... g6 {[%clk 0:02:09.8]} 19. Bxg6 {[%clk 0:01:22.2]} 19...
fxg6 {[%clk 0:02:10.7]} 20. Rcd1 {[%clk 0:01:20]} 20... Rad8 {[%clk 0:01:52.1]}
21. Rxd8 {[%clk 0:01:13.3]} 21... Rxd8 {[%clk 0:01:52.7]} 22. Rxd8+ {[%clk
0:01:08.8]} 22... Qxd8 {[%clk 0:01:50.9]} 23. Qxg6 {[%clk 0:01:08.6]} 23... Qg8
{[%clk 0:01:51.4]} 24. Qxg8+ {[%clk 0:01:08]} 24... Kxg8 {[%clk 0:01:52.3]} 25.
f4 {[%clk 0:01:05.8]} 25... Kf7 {[%clk 0:01:49.3]} 26. Kg2 {[%clk 0:01:06.3]}
26... a5 {[%clk 0:01:45.5]} 27. Kf3 {[%clk 0:01:06.4]} 27... a4 {[%clk
0:01:45.3]} 28. Ke4 {[%clk 0:01:04.7]} 28... Ke6 {[%clk 0:01:44.2]} 29. f5+
{[%clk 0:00:51.2]} 29... Kd6 {[%clk 0:01:44.1]} 30. f4 {[%clk 0:00:49.9]} 30...
Na5 {[%clk 0:01:34.2]} 31. Kd3 {[%clk 0:00:49.1]} 31... b5 {[%clk 0:01:29.5]}
32. e4 {[%clk 0:00:48.1]} 32... Nc4 {[%clk 0:01:23.1]} 33. e5+ {[%clk
0:00:46.1]} 33... Kd5 {[%clk 0:01:15.6]} 34. b3 {[%clk 0:00:44.4]} 34... axb3
{[%clk 0:01:11.2]} 35. axb3 {[%clk 0:00:45.3]} 35... Na5 {[%clk 0:01:08.9]} 36.
f6 {[%clk 0:00:39.6]} 36... Ke6 {[%clk 0:01:08.9]} 37. f5+ {[%clk 0:00:39.1]}
37... Kf7 {[%clk 0:01:07.1]} 38. b4 {[%clk 0:00:35.8]} 38... cxb4 {[%clk
0:01:05.1]} 39. cxb4 {[%clk 0:00:36.7]} 39... Nc6 {[%clk 0:01:05.7]} 40. Ke4
{[%clk 0:00:26.5]} 40... Nxb4 {[%clk 0:01:05.8]} 41. Kd4 {[%clk 0:00:26.9]}
41... Nc6+ {[%clk 0:00:46.7]} 42. Kd5 {[%clk 0:00:25]} 42... Nxe5 {[%clk
0:00:37.2]} 43. Kxe5 {[%clk 0:00:24]} 43... b4 {[%clk 0:00:38]} 44. Kd4 {[%clk
0:00:23]} 44... Kxf6 {[%clk 0:00:38.9]} 45. Kc4 {[%clk 0:00:22.9]} 45... Kxf5
{[%clk 0:00:39.6]} 46. Kxb4 {[%clk 0:00:23.4]} 46... Kg4 {[%clk 0:00:40.3]} 47.
Kc4 {[%clk 0:00:24]} 47... Kh3 {[%clk 0:00:41]} 48. Kd4 {[%clk 0:00:24.3]} 48...
Kxh2 {[%clk 0:00:41.7]} 49. Ke3 {[%clk 0:00:14.4]} 49... Kg3 {[%clk 0:00:41.8]}
50. Ke2 {[%clk 0:00:15]} 50... Kg2 {[%clk 0:00:42.2]} 0-1

[Event "Early-Titled-Tuesday-Blitz-December-26-2023"]
[Site "Chess.com"]
[Date "2023.12.26"]
[Round "8"]
[White "mbojan"]
[Black "LikeWater"]
[Result "1-0"]
[WhiteElo "2914"]
[BlackElo "2749"]
[TimeControl "180+1"]
[EndTime "9:29:03 PST"]
[Termination "mbojan won on time"]

1. a3 {[%clk 0:03:00.9]} 1... a6 {[%clk 0:02:59.8]} 2. h3 {[%clk 0:03:00.9]}
2... h6 {[%clk 0:02:58.9]} 3. e3 {[%clk 0:02:59]} 3... e6 {[%clk 0:02:58.3]} 4.
d4 {[%clk 0:02:52.9]} 4... d5 {[%clk 0:02:58.2]} 5. c4 {[%clk 0:02:53.5]} 5...
c5 {[%clk 0:02:58.2]} 6. Nc3 {[%clk 0:02:52.5]} 6... Nf6 {[%clk 0:02:58]} 7. Nf3
{[%clk 0:02:52.7]} 7... Nc6 {[%clk 0:02:58]} 8. cxd5 {[%clk 0:02:49]} 8... exd5
{[%clk 0:02:58.1]} 9. Be2 {[%clk 0:02:48.6]} 9... c4 {[%clk 0:02:41]} 10. Ne5
{[%clk 0:01:29.4]} 10... Na5 {[%clk 0:02:40.7]} 11. O-O {[%clk 0:00:31.4]} 11...
Nb3 {[%clk 0:02:36.6]} 12. Ra2 {[%clk 0:00:31.8]} 12... b5 {[%clk 0:02:31.2]}
13. Bd2 {[%clk 0:00:31.8]} 13... Bd6 {[%clk 0:02:20.9]} 14. Nb1 {[%clk 0:00:31]}
14... Bb7 {[%clk 0:02:06.3]} 15. Be1 {[%clk 0:00:25.1]} 15... Bxe5 {[%clk
0:01:58.4]} 16. dxe5 {[%clk 0:00:26]} 16... Nd7 {[%clk 0:01:58.9]} 17. Bc3
{[%clk 0:00:26.3]} 17... O-O {[%clk 0:01:53.8]} 18. Nd2 {[%clk 0:00:26.4]} 18...
Ndc5 {[%clk 0:01:53.6]} 19. Nxb3 {[%clk 0:00:22.8]} 19... Nxb3 {[%clk
0:01:54.5]} 20. Qb1 {[%clk 0:00:18.6]} 20... Qg5 {[%clk 0:01:32.7]} 21. f4
{[%clk 0:00:15.3]} 21... Qg3 {[%clk 0:01:33.3]} 22. Rf3 {[%clk 0:00:15.7]} 22...
Qh4 {[%clk 0:01:33.9]} 23. Bd4 {[%clk 0:00:14.3]} 23... Nd2 {[%clk 0:01:27.4]}
24. Qc2 {[%clk 0:00:11.8]} 24... Nxf3+ {[%clk 0:01:26.7]} 25. Bxf3 {[%clk
0:00:12.7]} 25... a5 {[%clk 0:01:16.9]} 26. Ra1 {[%clk 0:00:12.8]} 26... Qe7
{[%clk 0:01:16.3]} 27. Rf1 {[%clk 0:00:13]} 27... b4 {[%clk 0:01:15]} 28. f5
{[%clk 0:00:13.2]} 28... f6 {[%clk 0:01:02]} 29. exf6 {[%clk 0:00:13.2]} 29...
gxf6 {[%clk 0:01:02]} 30. Qf2 {[%clk 0:00:13.4]} 30... Kh8 {[%clk 0:00:29.1]}
31. Bh5 {[%clk 0:00:13.6]} 31... bxa3 {[%clk 0:00:25.4]} 32. bxa3 {[%clk
0:00:14.5]} 32... Qxa3 {[%clk 0:00:25.6]} 33. Qf4 {[%clk 0:00:13.9]} 33... Kh7
{[%clk 0:00:17.9]} 34. Rf3 {[%clk 0:00:14.7]} 34... Qe7 {[%clk 0:00:09.8]} 35.
Bg6+ {[%clk 0:00:15.1]} 35... Kg7 {[%clk 0:00:09.5]} 36. Rg3 {[%clk 0:00:15.5]}
36... Rh8 {[%clk 0:00:09.1]} 37. Bh5+ {[%clk 0:00:15]} 37... Kf8 {[%clk
0:00:09.2]} 38. Rg6 {[%clk 0:00:15.1]} 38... Ra6 {[%clk 0:00:04.3]} 39. Qb8+
{[%clk 0:00:15.1]} 39... Kf7 {[%clk 0:00:02.6]} 40. Qxh8 {[%clk 0:00:15.2]} 1-0

[Event "Early-Titled-Tuesday-Blitz-December-26-2023"]
[Site "Chess.com"]
[Date "2023.12.26"]
[Round "8"]
[White "LileKoridze"]
[Black "ProfessorChess101"]
[Result "0-1"]
[WhiteElo "2387"]
[BlackElo "2604"]
[TimeControl "180+1"]
[EndTime "9:29:04 PST"]
[Termination "ProfessorChess101 won by checkmate"]

1. d4 {[%clk 0:03:00.9]} 1... Nf6 {[%clk 0:02:59.3]} 2. c4 {[%clk 0:03:01.4]}
2... e6 {[%clk 0:02:59.7]} 3. Nf3 {[%clk 0:03:00.9]} 3... a6 {[%clk 0:02:58.9]}
4. g3 {[%clk 0:03:00.7]} 4... b5 {[%clk 0:02:58.7]} 5. cxb5 {[%clk 0:02:59]}
5... axb5 {[%clk 0:02:59.6]} 6. Bg2 {[%clk 0:02:59.3]} 6... Bb7 {[%clk
0:02:54.5]} 7. O-O {[%clk 0:02:59.2]} 7... Be7 {[%clk 0:02:49.6]} 8. a3 {[%clk
0:02:53.8]} 8... O-O {[%clk 0:02:47]} 9. Re1 {[%clk 0:02:51]} 9... b4 {[%clk
0:02:46.1]} 10. Bd2 {[%clk 0:02:48.4]} 10... Be4 {[%clk 0:02:35.9]} 11. Qb3
{[%clk 0:02:23.7]} 11... Nc6 {[%clk 0:02:31.4]} 12. Rc1 {[%clk 0:02:22.3]} 12...
Rb8 {[%clk 0:02:01.7]} 13. axb4 {[%clk 0:02:13.7]} 13... Nxb4 {[%clk 0:01:57.8]}
14. Qc4 {[%clk 0:01:50.5]} 14... Nbd5 {[%clk 0:01:52.1]} 15. b3 {[%clk
0:01:17.1]} 15... Rb6 {[%clk 0:01:35.8]} 16. Nc3 {[%clk 0:01:13.1]} 16... Rb4
{[%clk 0:01:23.5]} 17. Qa6 {[%clk 0:01:06.5]} 17... Nxc3 {[%clk 0:01:14.6]} 18.
Bxc3 {[%clk 0:01:06.2]} 18... Rxb3 {[%clk 0:01:14.1]} 19. Nd2 {[%clk 0:01:06.4]}
19... Rb6 {[%clk 0:01:12.4]} 20. Qa2 {[%clk 0:01:00.2]} 20... Bxg2 {[%clk
0:01:09.6]} 21. Kxg2 {[%clk 0:01:00.2]} 21... Qb8 {[%clk 0:01:08.9]} 22. Ba5
{[%clk 0:00:55.3]} 22... Rb2 {[%clk 0:01:05.7]} 23. Qc4 {[%clk 0:00:54]} 23...
Rc8 {[%clk 0:00:54.1]} 24. Nf3 {[%clk 0:00:43.6]} 24... Qb7 {[%clk 0:00:45.7]}
25. Kg1 {[%clk 0:00:37.1]} 25... h6 {[%clk 0:00:40.9]} 26. Ne5 {[%clk
0:00:31.5]} 26... c5 {[%clk 0:00:37]} 27. Nd3 {[%clk 0:00:23]} 27... Rxe2 {[%clk
0:00:30]} 28. Nxc5 {[%clk 0:00:20.7]} 28... Qf3 {[%clk 0:00:30.6]} 29. Rf1
{[%clk 0:00:11.1]} 29... Bxc5 {[%clk 0:00:25.3]} 30. dxc5 {[%clk 0:00:10.8]}
30... Ne4 {[%clk 0:00:25.9]} 31. Qa6 {[%clk 0:00:08.4]} 31... Rc6 {[%clk
0:00:12.1]} 32. Qa8+ {[%clk 0:00:07.6]} 32... Kh7 {[%clk 0:00:12.7]} 33. Rae1
{[%clk 0:00:06.6]} 33... Rxf2 {[%clk 0:00:05.4]} 34. Rxf2 {[%clk 0:00:05.9]}
34... Qxf2+ {[%clk 0:00:05.8]} 35. Kh1 {[%clk 0:00:06.6]} 35... Qf3+ {[%clk
0:00:05.9]} 36. Kg1 {[%clk 0:00:06.8]} 36... Ng5 {[%clk 0:00:06.1]} 37. Re2
{[%clk 0:00:02.4]} 37... Nh3# {[%clk 0:00:06.4]} 0-1

[Event "Early-Titled-Tuesday-Blitz-December-26-2023"]
[Site "Chess.com"]
[Date "2023.12.26"]
[Round "8"]
[White "Dinosaurio_1975"]
[Black "snowlord"]
[Result "0-1"]
[WhiteElo "2620"]
[BlackElo "2910"]
[TimeControl "180+1"]
[EndTime "9:29:06 PST"]
[Termination "snowlord won on time"]

1. e4 {[%clk 0:03:00.9]} 1... Nf6 {[%clk 0:02:57.2]} 2. e5 {[%clk 0:03:00.6]}
2... Nd5 {[%clk 0:02:57.5]} 3. d4 {[%clk 0:03:01.2]} 3... d6 {[%clk 0:02:57.8]}
4. c4 {[%clk 0:03:01.8]} 4... Nb6 {[%clk 0:02:57.7]} 5. f4 {[%clk 0:03:02.5]}
5... dxe5 {[%clk 0:02:56.5]} 6. fxe5 {[%clk 0:03:03.4]} 6... g6 {[%clk
0:02:57.2]} 7. Nc3 {[%clk 0:03:00.7]} 7... Bg7 {[%clk 0:02:55.7]} 8. Be3 {[%clk
0:02:59.2]} 8... O-O {[%clk 0:02:55.8]} 9. Nf3 {[%clk 0:02:54.1]} 9... Bg4
{[%clk 0:02:55.7]} 10. Be2 {[%clk 0:02:51.3]} 10... Bxf3 {[%clk 0:02:55.4]} 11.
gxf3 {[%clk 0:02:51.2]} 11... e6 {[%clk 0:02:50.8]} 12. Qd2 {[%clk 0:02:46.9]}
12... Nc6 {[%clk 0:02:27.9]} 13. O-O-O {[%clk 0:02:44.2]} 13... Qe7 {[%clk
0:02:18.6]} 14. c5 {[%clk 0:02:37.3]} 14... Nd7 {[%clk 0:02:07.2]} 15. h4 {[%clk
0:02:14.1]} 15... Rad8 {[%clk 0:02:05.5]} 16. Bg5 {[%clk 0:02:03.9]} 16... f6
{[%clk 0:02:04.3]} 17. exf6 {[%clk 0:02:04.6]} 17... Bxf6 {[%clk 0:02:01.4]} 18.
Qe3 {[%clk 0:01:58.1]} 18... Qg7 {[%clk 0:01:29]} 19. Bc4 {[%clk 0:01:38.7]}
19... Rfe8 {[%clk 0:00:59]} 20. Bxf6 {[%clk 0:01:16.7]} 20... Nxf6 {[%clk
0:00:59.9]} 21. Bxe6+ {[%clk 0:01:01.5]} 21... Kh8 {[%clk 0:00:59.9]} 22. d5
{[%clk 0:01:02]} 22... Nb4 {[%clk 0:00:46.8]} 23. Qf4 {[%clk 0:00:39]} 23... a5
{[%clk 0:00:36.5]} 24. a3 {[%clk 0:00:38.2]} 24... Na6 {[%clk 0:00:37.1]} 25.
Qc4 {[%clk 0:00:34.1]} 25... Qe7 {[%clk 0:00:23.7]} 26. b4 {[%clk 0:00:19.7]}
26... axb4 {[%clk 0:00:24.6]} 27. axb4 {[%clk 0:00:20.2]} 27... Qg7 {[%clk
0:00:18.6]} 28. Rhe1 {[%clk 0:00:16.5]} 28... Nb8 {[%clk 0:00:18.3]} 29. f4
{[%clk 0:00:09.8]} 29... b6 {[%clk 0:00:17.6]} 30. c6 {[%clk 0:00:09]} 30... b5
{[%clk 0:00:15.5]} 31. Nxb5 {[%clk 0:00:08.3]} 31... Na6 {[%clk 0:00:14.2]} 32.
Nc3 {[%clk 0:00:07.2]} 32... Ra8 {[%clk 0:00:10.9]} 33. Bd7 {[%clk 0:00:07.7]}
33... Reb8 {[%clk 0:00:09.9]} 34. d6 {[%clk 0:00:06.5]} 34... Rxb4 {[%clk
0:00:06.6]} 35. Qd3 {[%clk 0:00:06.4]} 35... Nd5 {[%clk 0:00:04.4]} 36. Kc2
{[%clk 0:00:01.5]} 36... Rab8 {[%clk 0:00:03.1]} 0-1